bitfinex/quotes_ETHUSD_20250724
["timestamp","ask_amount","ask_price","bid_price","bid_amount"]
[1753389846893,0.9255,3739.1,3739.0,4.2276]
[1753389848524,0.9255,3739.1,3739.0,0.1336]
[1753389848685,0.9255,3739.1,3739.0,4.2276]
[1753389848886,0.4559,3739.1,3739.0,4.2276]
[1753389849127,0.9255,3739.1,3739.0,4.2276]
[1753389851390,0.9255,3739.1,3739.0,0.1336]
[1753389851603,0.9255,3739.1,3739.0,4.2276]
[1753389851802,0.002,3739.4,3739.0,4.2276]
[1753389852025,0.002,3739.4,3739.3,6.01146404]
[1753389852341,0.002,3739.4,3739.3,10.10546404]
[1753389853126,0.002,3739.4,3739.3,12.77976136]
[1753389853332,0.002,3739.4,3739.3,12.91336136]
[1753389864255,0.4643,3739.4,3739.3,12.91336136]
[1753389866730,0.002,3739.4,3739.3,12.91336136]
[1753389871906,0.4643,3739.4,3739.3,12.91336136]
[1753389872841,0.8944,3739.4,3738.7,0.8282]
[1753389873136,1.4424,3739.3,3739.0,0.1336]
[1753389873305,1.4424,3739.3,3739.1,4.091]
[1753389873503,0.8924,3739.2,3739.1,4.091]
[1753389875737,0.8924,3739.2,3739.0,6.14506404]
[1753389875907,0.552,3739.4,3739.1,4.091]
[1753389876312,3.22627653,3739.4,3739.1,4.091]
[1753389876515,0.8924,3739.3,3739.1,4.091]
[1753389877038,0.8924,3739.2,3739.1,4.091]
[1753389877647,0.8924,3739.2,3739.0,8.81950815]
[1753389877948,0.552,3739.4,3739.1,4.091]
[1753389878444,0.8924,3739.3,3739.1,4.091]
[1753389878647,0.8924,3739.2,3739.1,4.091]
[1753389878848,0.8924,3739.2,3739.0,8.81955826]
[1753389879021,0.552,3739.4,3739.1,4.09]
[1753389879423,0.552,3739.4,3739.0,6.14506404]
[1753389879617,0.8924,3739.3,3739.1,4.09]
[1753389879835,0.552,3739.4,3739.1,4.09]
[1753389879836,0.8924,3739.2,3739.1,4.09]
[1753389882830,0.8924,3739.2,3739.0,6.14506404]
[1753389883047,0.8924,3739.1,3739.0,6.14506404]
[1753389883228,0.8924,3739.1,3739.0,10.23506404]
[1753389884752,0.8924,3739.1,3739.0,6.14506404]
[1753389885222,0.8924,3739.1,3739.0,10.23506404]
[1753389886054,3.552,3739.4,3739.0,10.23506404]
[1753389886354,0.002,3739.4,3739.1,0.1613]
[1753389886561,0.002,3739.4,3739.3,2.80789732]
[1753389887219,0.002,3739.4,3739.3,0.1336]
[1753389887423,0.002,3739.4,3739.3,2.80789732]
[1753389890356,0.002,3739.4,3739.3,0.1336]
[1753389890521,0.002,3739.4,3739.3,2.80789732]
[1753389892138,0.4623,3739.4,3739.3,0.1336]
[1753389892329,0.4623,3739.4,3739.3,4.089]
[1753389892330,2.2775,3739.4,3739.3,4.089]
[1753389892729,7.95172581,3739.4,3739.3,4.089]
[1753389893040,8.08532581,3739.4,3739.3,4.089]
[1753389894039,3.55,3739.3,3738.8,0.001]
[1753389894244,4.13624432,3739.3,3738.9,4.089]
[1753389894432,3.22434432,3739.3,3739.0,4.089]
[1753389894658,0.55,3739.1,3739.0,4.089]
[1753389894997,0.9119,3739.1,3739.0,4.089]
[1753389895133,1.4619,3739.1,3739.0,4.089]
[1753389896630,1.4619,3739.1,3738.8,0.1346]
[1753389896835,0.9119,3739.0,3738.9,4.088]
[1753389897340,0.9119,3739.0,3738.8,0.1346]
[1753389897558,0.9119,3738.9,3738.8,0.1346]
[1753389897734,0.9119,3738.9,3738.8,4.2226]
[1753389898043,0.9119,3738.9,3738.8,0.1346]
[1753389898448,0.9119,3738.9,3738.8,4.2226]
[1753389898846,5.10088343,3738.9,3738.8,0.001]
[1753389899046,0.55,3738.7,3738.5,4.088]
[1753389899246,6.22479805,3738.6,3738.5,4.088]
[1753389899461,7.27029805,3738.6,3738.5,4.088]
[1753389899784,4.5955,3738.6,3738.5,4.088]
[1753389900259,3.55,3738.6,3738.5,4.088]
[1753389900956,0.55,3738.6,3738.5,4.088]
[1753389901291,1.4619,3738.6,3738.5,4.088]
[1753389902508,0.55,3738.3,3738.0,0.001]
[1753389902691,0.55,3738.3,3738.1,4.088]
[1753389902986,0.9119,3738.2,3738.1,4.088]
[1753389903780,0.55,3738.1,3738.0,0.001]
[1753389903980,1.4619,3738.1,3738.0,4.089]
[1753389904769,1.4619,3738.1,3738.0,0.001]
[1753389905280,1.4619,3738.1,3738.0,4.089]
[1753389906289,1.4619,3738.1,3738.0,0.001]
[1753389906586,1.4619,3738.1,3738.0,4.089]
[1753389908458,1.0103,3738.1,3738.0,12.77569143]
[1753389908701,0.1336,3738.2,3738.0,12.77569143]
[1753389908855,0.4603,3739.2,3738.7,2.67465646]
[1753389909060,0.9119,3739.1,3738.8,4.088]
[1753389909277,0.1336,3739.0,3738.8,4.088]
[1753389909563,1.0103,3738.9,3738.8,4.088]
[1753389909791,0.9119,3738.9,3738.7,6.01146404]
[1753389910003,3.1336,3739.0,3738.5,0.1336]
[1753389910004,0.9119,3738.8,3738.5,0.1336]
[1753389910158,0.55,3738.6,3738.3,6.01146404]
[1753389910366,0.55,3738.4,3738.1,0.1336]
[1753389910559,0.9119,3738.3,3738.2,4.088]
[1753389911065,0.9119,3738.3,3738.2,2.67508426]
[1753389911372,0.9119,3738.3,3738.2,4.088]
[1753389913921,0.9119,3738.3,3738.2,4.087]
[1753389914706,0.55,3738.5,3738.2,6.76208426]
[1753389914908,0.4603,3739.0,3738.3,6.03071003]
[1753389915227,0.55,3738.9,3738.8,6.01146404]
[1753389915395,1.0207,3738.9,3738.8,10.09846404]
[1753389916189,0.55,3738.9,3738.8,10.09846404]
[1753389916390,0.002,3739.4,3738.9,0.7622]
[1753389916719,0.552,3739.4,3739.3,6.01146404]
[1753389916922,0.552,3739.4,3739.3,10.09846404]
[1753389917219,1.4857,3739.4,3739.3,10.09846404]
[1753389917720,7.15992581,3739.4,3739.3,4.087]
[1753389917923,3.22438971,3739.2,3738.4,0.8086]
[1753389918117,0.6836,3739.2,3738.7,0.1336]
[1753389918294,0.55,3739.0,3738.8,4.087]
[1753389918494,0.9337,3738.9,3738.8,4.087]
[1753389919124,0.55,3739.1,3738.8,4.087]
[1753389919327,0.55,3739.1,3738.9,2.67458343]
[1753389919624,0.55,3739.1,3739.0,4.087]
[1753389920724,0.1336,3739.2,3739.0,4.087]
[1753389920923,0.552,3739.4,3739.1,6.81686404]
[1753389921128,0.552,3739.4,3739.3,2.67429732]
[1753389921632,0.002,3739.4,3739.3,2.69352543]
[1753389921833,0.002,3739.4,3739.3,2.80789732]
[1753389922533,0.002,3739.4,3739.3,2.82712543]
[1753389929037,0.002,3739.4,3739.3,2.80789732]
[1753389929229,0.002,3739.4,3739.3,2.82712543]
[1753389929428,0.002,3739.4,3739.3,2.80789732]
[1753389933206,0.002,3739.4,3739.3,6.89289732]
[1753389935343,0.002,3739.4,3739.3,6.75929732]
[1753389936545,0.002,3739.4,3739.3,4.085]
[1753389936744,0.002,3739.4,3739.3,6.75929732]
[1753389937244,0.4727,3739.4,3739.3,6.75929732]
[1753389937449,0.4727,3739.4,3739.3,2.67429732]
[1753389937612,0.4727,3739.4,3739.3,6.75829732]
[1753389937960,0.4727,3739.4,3739.3,4.084]
[1753389938159,1.4857,3739.4,3739.3,4.084]
[1753389938307,0.002,3739.4,3739.3,4.084]
[1753389938508,0.002,3739.4,3739.3,6.75829732]
[1753389939044,0.002,3739.4,3739.3,6.89189732]
[1753389940660,0.002,3739.9,3739.4,2.67422581]
[1753389940955,0.002,3739.9,3739.8,3.58273978]
[1753389941159,0.002,3739.9,3739.8,7.68595895]
[1753389941329,0.002,3739.9,3739.8,7.82933978]
[1753389942574,0.002,3739.9,3739.8,3.58273978]
[1753389942916,0.002,3739.9,3739.8,7.66573978]
[1753389943113,0.002,3739.9,3739.8,4.8582]
[1753389943313,0.4727,3739.9,3739.8,7.53213978]
[1753389943721,0.002,3739.9,3739.8,7.53213978]
[1753389944466,0.4727,3739.9,3739.8,7.53213978]
[1753389947229,0.4537,3739.9,3739.8,6.75693978]
[1753389947601,0.9123,3739.9,3739.8,6.75693978]
[1753389948077,0.9123,3739.9,3739.7,0.1336]
[1753389948225,0.1356,3739.9,3739.4,2.80782107]
[1753389948432,0.9103,3739.8,3739.5,4.082]
[1753389948774,0.9103,3739.7,3739.5,4.082]
[1753389948940,3.58444148,3739.6,3739.3,6.956]
[1753389949140,1.4603,3739.5,3739.4,4.082]
[1753389949343,1.5939,3739.5,3739.4,4.082]
[1753389949547,0.5853,3739.5,3739.4,4.082]
[1753389949748,0.002,3739.9,3739.6,2.67404213]
[1753389949934,0.002,3739.9,3739.7,6.77521652]
[1753389950135,0.002,3739.9,3739.8,2.67393978]
[1753389950450,0.002,3739.9,3739.8,3.47335895]
[1753389952613,0.002,3739.9,3739.8,3.63595895]
[1753389954893,0.002,3740.0,3739.8,3.63595895]
[1753389954894,0.002,3740.0,3739.9,2.67386828]
[1753389955099,0.002,3740.0,3739.9,7.58786828]
[1753389955261,0.002,3740.0,3739.9,7.88406828]
[1753389956395,0.002,3740.0,3739.9,7.72146828]
[1753389956689,0.002,3740.0,3739.9,9.65093232]
[1753389956893,0.002,3740.0,3739.9,13.73293232]
[1753389957462,0.4537,3740.0,3739.9,13.73293232]
[1753389958618,0.002,3740.0,3739.9,13.73293232]
[1753389959228,0.002,3740.0,3739.9,13.89553232]
[1753389961338,0.002,3740.0,3739.9,17.01099653]
[1753389964334,0.002,3740.0,3739.9,16.84839653]
[1753389965439,0.002,3740.0,3739.9,12.76639653]
[1753389965598,0.002,3740.0,3739.9,16.84639653]
[1753389969032,0.002,3740.0,3739.9,17.00899653]
[1753389972254,0.002,3740.2,3740.1,3.5062253]
[1753389972457,0.002,3740.9,3740.7,2.67329644]
[1753389972632,0.002,3740.9,3740.7,26.23873578]
[1753389972833,0.002,3740.9,3740.7,22.72878069]
[1753389973169,0.002,3740.9,3740.7,22.86238069]
[1753389973366,0.002,3740.9,3740.7,16.84632469]
[1753389974779,0.002,3740.9,3740.7,17.00892469]
[1753389974939,0.002,3740.9,3740.7,16.84632469]
[1753389980537,0.002,3741.4,3741.1,2.67295387]
[1753389980763,0.002,3741.4,3741.3,12.72169596]
[1753389981183,0.002,3741.4,3741.3,9.59528126]
[1753389981564,0.9267,3741.4,3741.3,4.2126]
[1753389981756,0.9267,3741.4,3741.3,4.079]
[1753389983180,0.789,3741.3,3741.1,6.954]
[1753389983484,0.789,3741.3,3741.2,4.079]
[1753389983639,4.01187836,3741.3,3741.2,4.079]
[1753389983843,1.4726,3741.3,3741.2,4.079]
[1753389984099,2.3973,3741.3,3741.2,4.079]
[1753389984247,0.55,3741.2,3740.6,0.1336]
[1753389984570,0.1336,3741.0,3740.7,4.079]
[1753389984772,0.9247,3740.9,3740.8,4.078]
[1753389986289,0.9247,3740.9,3740.5,0.1336]
[1753389986598,0.1336,3740.7,3740.6,4.078]
[1753389987005,1.0583,3740.7,3740.6,4.078]
[1753389996390,0.5655,3740.7,3740.6,4.078]
[1753389997259,1.0583,3740.7,3740.6,4.078]
[1753389999993,0.5655,3740.7,3740.6,4.078]
[1753390000298,1.0583,3740.7,3740.6,4.078]
[1753390001526,0.4928,3741.1,3740.6,10.09771842]
[1753390001663,0.1336,3741.1,3741.0,2.67308206]
[1753390001864,0.4928,3741.1,3741.0,6.75108206]
[1753390002260,0.4948,3741.4,3741.0,4.078]
[1753390002459,0.4948,3741.4,3741.2,6.00051355]
[1753390002665,0.002,3741.4,3741.3,4.078]
[1753390002962,0.4339,3741.4,3741.3,6.75086771]
[1753390003290,0.9267,3741.4,3741.3,6.75086771]
[1753390003601,0.9267,3741.4,3741.3,4.078]
[1753390003899,0.9267,3741.4,3741.3,6.75086771]
[1753390004365,0.9267,3741.4,3741.3,4.078]
[1753390006264,0.9267,3741.4,3741.3,6.75086771]
[1753390006468,0.4948,3741.4,3741.3,6.75086771]
[1753390008899,0.002,3741.4,3741.3,6.75086771]
[1753390009102,0.4569,3741.4,3741.3,6.75086771]
[1753390009897,0.002,3741.4,3741.3,6.75086771]
[1753390010098,0.002,3741.4,3741.3,7.83626771]
[1753390010866,0.002,3741.4,3741.3,7.83496771]
[1753390011269,0.002,3741.4,3741.3,7.83626771]
[1753390011716,0.44684769,3741.5,3741.4,6.47869627]
[1753390011917,0.002,3741.6,3741.5,2.67272484]
[1753390012086,0.002,3741.6,3741.5,7.73264647]
[1753390012290,0.002,3741.6,3741.5,17.83524367]
[1753390012515,0.002,3742.2,3742.1,2.6722963]
[1753390012729,0.002,3742.2,3742.1,13.57488793]
[1753390012875,0.002,3742.2,3742.1,13.55570985]
[1753390013082,0.002,3742.2,3742.1,13.68930985]
[1753390017732,0.9139,3742.2,3742.1,0.1336]
[1753390017879,1.6884,3742.2,3742.1,4.076]
[1753390020194,1.6884,3742.2,3741.9,6.953]
[1753390020424,1.0455,3742.1,3742.0,4.075]
[1753390022121,3.22236771,3742.0,3741.9,6.953]
[1753390022322,3.22236771,3742.0,3741.9,11.028]
[1753390022521,4.13426771,3742.0,3741.9,11.028]
[1753390023112,1.4619,3742.0,3741.9,11.028]
[1753390023815,4.13426771,3742.0,3741.9,11.028]
[1753390024607,0.9119,3742.0,3741.9,11.028]
[1753390026340,0.4569,3742.2,3741.9,11.028]
[1753390026636,0.002,3742.2,3742.1,2.6722963]
[1753390026942,0.002,3742.2,3742.1,7.6630963]
[1753390032447,0.002,3742.2,3742.1,7.8256963]
[1753390032616,0.002,3742.2,3742.1,7.09175716]
[1753390032805,0.002,3742.2,3742.1,16.82620985]
[1753390033131,0.002,3742.2,3742.1,16.66360985]
[1753390033639,0.002,3742.2,3742.1,16.82620985]
[1753390033840,0.002,3742.2,3742.1,16.66360985]
[1753390036036,0.002,3742.2,3742.1,16.66260985]
[1753390038753,0.002,3742.2,3742.1,16.82520985]
[1753390038911,0.002,3742.2,3742.1,16.82390985]
[1753390039111,0.002,3742.2,3742.1,16.66260985]
[1753390040252,0.9148,3742.2,3742.1,0.1336]
[1753390040412,0.9148,3742.2,3742.1,4.074]
[1753390040607,0.8285,3742.1,3742.0,0.1336]
[1753390040812,2.2913,3742.1,3742.0,4.074]
[1753390041048,2.4249,3742.1,3742.0,4.074]
[1753390042153,5.0971963,3742.1,3742.0,4.074]
[1753390042449,3.22236771,3742.0,3741.9,6.953]
[1753390042625,4.13516771,3742.0,3741.9,6.953]
[1753390042825,4.13516771,3742.0,3740.8,0.1336]
[1753390042826,4.00438198,3741.7,3740.8,0.1336]
[1753390043019,4.13798198,3741.7,3741.6,4.075]
[1753390043220,6.38217404,3741.7,3741.6,0.001]
[1753390043416,6.38217404,3741.7,3741.6,3.6]
[1753390043729,9.38217404,3741.7,3741.6,3.6]
[1753390045389,9.38217404,3741.7,3740.8,0.001]
[1753390045390,3.55,3741.2,3740.8,0.001]
[1753390045665,4.18235351,3740.9,3740.8,0.001]
[1753390045833,4.21576792,3740.9,3740.8,4.075]
[1753390046023,8.12856792,3740.9,3740.8,4.075]
[1753390046222,9.44554531,3740.9,3740.8,4.075]
[1753390047429,6.7723918,3740.9,3740.8,4.075]
[1753390047636,9.44554531,3740.9,3740.8,0.001]
[1753390048018,2.67351085,3740.4,3740.3,0.001]
[1753390048229,2.67351085,3740.4,3740.1,0.001]
[1753390048230,7.01995381,3740.2,3740.1,0.001]
[1753390048430,7.15355381,3740.2,3740.1,0.001]
[1753390048644,9.53635086,3740.2,3740.1,0.001]
[1753390048840,9.08455086,3740.2,3740.1,0.001]
[1753390049059,9.53635086,3740.2,3740.1,0.001]
[1753390058849,9.08455086,3740.2,3740.1,0.001]
[1753390059048,9.53635086,3740.2,3740.1,0.001]
[1753390061249,8.98635086,3740.2,3740.1,0.001]
[1753390061583,9.53635086,3740.2,3740.1,0.001]
[1753390068898,9.08455086,3740.2,3740.1,0.001]
[1753390069109,9.57595086,3740.2,3740.1,0.001]
[1753390070482,4.02021128,3739.7,3739.6,1e-08]
[1753390070807,8.8039164,3739.7,3739.6,1e-08]
[1753390071006,9.69999126,3739.7,3739.6,1e-08]
[1753390072576,13.77699126,3739.7,3739.6,1e-08]
[1753390072777,3.9974119,3739.0,3738.6,0.001]
[1753390073096,12.72704502,3739.0,3738.6,0.001]
[1753390073297,9.54611363,3739.0,3738.6,0.001]
[1753390081519,0.55,3738.7,3738.4,1e-08]
[1753390081814,4.28065496,3738.8,3737.4,0.001]
[1753390081815,7.05325582,3738.1,3738.0,1e-08]
[1753390082031,13.0641968,3738.1,3738.0,1e-08]
[1753390082210,15.69545059,3738.1,3738.0,1e-08]
[1753390082588,9.68450961,3738.1,3738.0,1e-08]
[1753390082786,9.38000961,3738.1,3738.0,1e-08]
[1753390083218,7.51050961,3738.1,3738.0,1e-08]
[1753390083403,1.83535379,3738.1,3738.0,0.43460001]
[1753390083612,4.51050961,3738.1,3738.0,0.43460001]
[1753390084320,1.83535379,3738.1,3738.0,0.43460001]
[1753390085483,1.83535379,3738.1,3738.0,1.19430001]
[1753390086509,1.70175379,3738.1,3738.0,9.88046838]
[1753390088690,0.1336,3738.8,3738.4,2.674909]
[1753390089025,1.44225739,3739.3,3738.4,2.674909]
[1753390089026,1.44225739,3739.3,3738.6,2.67477755]
[1753390089228,0.1336,3739.0,3738.7,0.8235]
[1753390089535,0.1336,3739.0,3738.8,0.4359]
[1753390091138,0.1336,3739.0,3738.9,0.4346]
[1753390092634,0.55,3739.2,3738.9,3.91948343]
[1753390092822,0.1336,3739.1,3739.0,3.1091119]
[1753390093026,0.1336,3739.1,3739.0,7.1861119]
[1753390093338,0.1336,3739.1,3739.0,4.5116]
[1753390094638,1.44225739,3739.3,3739.2,2.67436884]
[1753390094845,1.44225739,3739.3,3739.2,10.04313972]
[1753390095011,1.44225739,3739.3,3739.2,10.02390982]
[1753390097238,1.44225739,3739.3,3739.2,4.01296884]
[1753390105145,1.44425739,3739.3,3739.2,4.01296884]
[1753390107663,1.44425739,3739.3,3739.2,8.08896884]
[1753390108363,1.44425739,3739.3,3739.2,15.04596884]
[1753390110370,1.44425739,3739.3,3739.2,15.04496884]
[1753390111379,0.002,3740.1,3740.0,2.67379679]
[1753390111570,0.002,3740.1,3740.0,6.74879679]
[1753390111774,0.002,3740.1,3740.0,7.71199679]
[1753390111980,0.002,3740.1,3740.0,8.17519679]
[1753390112469,0.002,3740.1,3740.0,11.17519679]
[1753390114085,0.002,3740.1,3740.0,17.47273879]
[1753390114757,0.002,3740.1,3740.0,15.78529679]
[1753390115477,0.002,3740.1,3740.0,14.06329679]
[1753390115834,0.002,3740.1,3740.0,11.17519679]
[1753390116033,0.002,3740.1,3740.0,20.71343179]
[1753390116463,0.002,3740.1,3740.0,14.83514079]
[1753390116979,0.002,3740.1,3740.0,11.17519679]
[1753390117496,0.002,3740.1,3740.0,13.33814579]
[1753390117846,0.002,3740.1,3740.0,11.17519679]
[1753390118046,0.002,3740.1,3740.0,16.50850379]
[1753390118484,0.002,3741.1,3740.0,16.50850379]
[1753390118645,0.002,3741.1,3741.0,3.49478206]
[1753390118964,0.002,3741.1,3741.0,7.70238206]
[1753390119156,0.002,3741.1,3741.0,13.70491969]
[1753390119352,0.002,3741.1,3741.0,14.16681969]
[1753390120861,0.002,3741.1,3741.0,3.62838206]
[1753390121154,0.9149,3741.1,3741.0,6.88068206]
[1753390121555,0.002,3741.1,3741.0,6.88068206]
[1753390121761,0.4739,3741.1,3741.0,6.88068206]
[1753390121958,0.4739,3741.1,3741.0,0.1336]
[1753390122144,0.9149,3741.1,3740.9,6.955]
[1753390122347,0.4739,3741.1,3741.0,4.074]
[1753390122561,0.002,3741.1,3741.0,4.074]
[1753390122960,0.443,3741.1,3740.9,6.955]
[1753390123160,0.443,3741.1,3741.0,4.074]
[1753390123161,0.002,3741.1,3741.0,4.074]
[1753390123782,0.9149,3741.1,3741.0,4.074]
[1753390128897,0.935,3741.1,3741.0,4.074]
[1753390129298,0.935,3741.1,3741.0,4.073]
[1753390129508,0.494,3741.1,3741.0,4.073]
[1753390129709,0.002,3741.1,3741.0,7.55418206]
[1753390129914,0.002,3741.1,3741.0,8.16148206]
[1753390132820,0.002,3741.1,3741.0,7.68778206]
[1753390134679,0.002,3741.1,3741.0,0.1336]
[1753390134880,0.9271,3741.1,3741.0,4.073]
[1753390135529,0.55,3741.0,3740.9,6.955]
[1753390135757,2.3605,3741.0,3740.9,4.073]
[1753390138343,5.03358206,3741.0,3740.9,4.073]
[1753390138919,4.54158206,3741.0,3740.9,4.073]
[1753390139127,5.03358206,3741.0,3740.9,4.073]
[1753390139354,2.3605,3741.0,3740.9,4.073]
[1753390139536,5.03358206,3741.0,3740.9,4.073]
[1753390140213,5.03358206,3741.0,3740.4,0.1336]
[1753390140214,2.3605,3741.0,3740.4,0.1336]
[1753390140401,0.1336,3740.6,3740.5,4.073]
[1753390140805,1.0587,3740.6,3740.5,4.073]
[1753390141643,0.8025,3740.5,3739.9,9.62685283]
[1753390141946,0.9251,3740.4,3740.0,0.1336]
[1753390142106,0.1336,3740.3,3740.1,4.073]
[1753390142311,0.9251,3740.2,3740.1,4.073]
[1753390142651,3.22379679,3740.0,3739.9,6.953]
[1753390142944,2.4112,3740.0,3739.9,11.026]
[1753390143347,2.4112,3740.0,3739.9,6.953]
[1753390145759,5.08499679,3740.0,3739.9,11.026]
[1753390146132,5.08499679,3740.0,3739.9,6.953]
[1753390146469,0.55,3739.4,3739.3,0.001]
[1753390146617,4.02235363,3739.4,3739.3,0.001]
[1753390146822,4.94745363,3739.4,3739.3,4.074]
[1753390147361,7.91402581,3739.4,3739.3,0.001]
[1753390148818,7.42202581,3739.4,3739.3,0.001]
[1753390149159,7.91402581,3739.4,3739.3,0.001]
[1753390155472,7.91402581,3739.4,3739.3,1e-08]
[1753390156267,8.04762581,3739.4,3739.3,1e-08]
[1753390156565,12.12262581,3739.4,3739.3,1e-08]
[1753390156929,8.04762581,3739.4,3739.3,1e-08]
[1753390158902,7.55562581,3739.4,3739.3,1e-08]
[1753390159066,8.02292581,3739.4,3739.3,1e-08]
[1753390165938,12.09892581,3739.4,3739.3,1e-08]
[1753390169453,13.70492581,3739.4,3739.3,1e-08]
[1753390169913,13.70692581,3739.4,3739.3,1e-08]
[1753390171547,14.28212106,3739.4,3739.3,1e-08]
[1753390172252,14.53188139,3739.4,3739.3,1e-08]
[1753390172634,13.70692581,3739.4,3739.3,1e-08]
[1753390172838,14.28246373,3739.4,3739.3,1e-08]
[1753390173957,14.53230894,3739.4,3739.3,1e-08]
[1753390175676,14.53251655,3739.4,3739.3,1e-08]
[1753390179830,15.25386925,3739.4,3739.3,1e-08]
[1753390180264,12.66476925,3739.4,3739.3,1e-08]
[1753390180562,8.17871655,3739.4,3739.3,1e-08]
[1753390180876,11.72871655,3739.4,3739.3,1e-08]
[1753390181071,3.38536373,3739.4,3739.3,1e-08]
[1753390181242,2.80982581,3739.4,3739.3,1e-08]
[1753390181433,3.39325363,3739.4,3739.3,1e-08]
[1753390181765,8.35812581,3739.4,3739.3,1e-08]
[1753390181949,12.96024799,3739.4,3739.3,1e-08]
[1753390182149,12.70996373,3739.4,3739.3,1e-08]
[1753390182554,11.47866373,3739.4,3739.3,1e-08]
[1753390183273,11.93366373,3739.4,3739.3,1e-08]
[1753390183769,7.85766373,3739.4,3739.3,1e-08]
[1753390184146,6.93536373,3739.4,3739.3,1e-08]
[1753390184961,6.35982581,3739.4,3739.3,1e-08]
[1753390186290,8.06412581,3739.4,3739.3,1e-08]
[1753390186450,8.63966373,3739.4,3739.3,1e-08]
[1753390191392,7.62562581,3739.4,3739.3,1e-08]
[1753390191594,6.85012581,3739.4,3739.3,1e-08]
[1753390191764,10.92612581,3739.4,3739.3,1e-08]
[1753390193279,11.36462581,3739.4,3739.3,1e-08]
[1753390193681,7.28862581,3739.4,3739.3,1e-08]
[1753390195499,6.85012581,3739.4,3739.3,1e-08]
[1753390196296,7.28862581,3739.4,3739.3,1e-08]
[1753390199843,7.8660816,3739.4,3739.3,1e-08]
[1753390200046,10.2593816,3739.4,3739.3,1e-08]
[1753390200191,10.9807343,3739.4,3739.3,1e-08]
[1753390200696,7.01109805,3738.6,3738.5,1e-08]
[1753390200883,10.43439805,3738.6,3738.5,1e-08]
[1753390201518,6.35839805,3738.6,3738.5,1e-08]
[1753390201885,6.35839805,3738.6,3738.5,0.44810001]
[1753390202221,6.35839805,3738.6,3738.5,1e-08]
[1753390204635,6.35839805,3738.6,3738.5,0.44810001]
[1753390205539,6.35839805,3738.6,3738.5,1e-08]
[1753390205700,7.28719805,3738.6,3738.5,1e-08]
[1753390207335,6.84869805,3738.6,3738.5,1e-08]
[1753390207735,6.35839805,3738.6,3738.5,1e-08]
[1753390208039,6.35839805,3738.6,3738.5,0.44810001]
[1753390208239,3.1336,3738.6,3738.5,1.24980001]
[1753390208456,6.35839805,3738.6,3738.5,1e-08]
[1753390208758,6.84869805,3738.6,3738.5,1e-08]
[1753390208953,7.28719805,3738.6,3738.5,1e-08]
[1753390211529,6.35839805,3738.6,3738.5,1e-08]
[1753390212564,6.35839805,3738.6,3738.5,0.82280001]
[1753390212859,6.35839805,3738.6,3738.5,1.27090001]
[1753390213036,5.80839805,3738.6,3738.5,1.27090001]
[1753390213241,6.35839805,3738.6,3738.5,1.27090001]
[1753390216054,6.35839805,3738.6,3738.5,0.82280001]
[1753390216573,6.35839805,3738.6,3738.5,1e-08]
[1753390216980,7.30519805,3738.6,3738.5,1e-08]
[1753390217646,6.35839805,3738.6,3738.5,1e-08]
[1753390217875,6.83519805,3738.6,3738.5,1e-08]
[1753390219081,6.35839805,3738.6,3738.5,1e-08]
[1753390220679,6.83519805,3738.6,3738.5,1e-08]
[1753390220888,7.30519805,3738.6,3738.5,1e-08]
[1753390228898,6.82839805,3738.6,3738.5,1e-08]
[1753390229090,7.30519805,3738.6,3738.5,1e-08]
[1753390230811,14.36091257,3738.6,3738.5,1e-08]
[1753390231013,14.61158435,3738.6,3738.5,1e-08]
[1753390231479,14.76196275,3738.6,3738.5,1e-08]
[1753390231688,14.61158435,3738.6,3738.5,1e-08]
[1753390231883,8.45958435,3738.6,3738.5,1e-08]
[1753390232194,5.80839805,3738.6,3738.5,1e-08]
[1753390232399,6.28519805,3738.6,3738.5,1e-08]
[1753390232582,6.75519805,3738.6,3738.5,1e-08]
[1753390232909,7.30519805,3738.6,3738.5,1e-08]
[1753390233282,11.38019805,3738.6,3738.5,1e-08]
[1753390233515,12.16399805,3738.6,3738.5,1e-08]
[1753390234319,12.74123766,3738.6,3738.5,1e-08]
[1753390234929,12.16399805,3738.6,3738.5,1e-08]
[1753390238215,10.91219805,3738.6,3738.5,1e-08]
[1753390238550,5.81039805,3738.6,3738.5,1e-08]
[1753390238714,2.81039805,3738.6,3738.5,0.44400001]
[1753390239145,5.81039805,3738.6,3738.5,0.44400001]
[1753390239859,0.1356,3738.6,3738.5,0.44400001]
[1753390240018,3.36039805,3738.6,3738.5,0.44400001]
[1753390241747,3.39383302,3738.6,3738.5,0.44400001]
[1753390241953,3.39383302,3738.6,3738.5,1e-08]
[1753390244641,3.36039805,3738.6,3738.5,1e-08]
[1753390245336,3.36039805,3738.6,3738.5,0.44400001]
[1753390245954,3.36039805,3738.6,3738.5,1e-08]
[1753390246954,3.39383302,3738.6,3738.5,1e-08]
[1753390247262,3.36039805,3738.6,3738.5,1e-08]
[1753390247760,3.39383302,3738.6,3738.5,1e-08]
[1753390248120,3.36039805,3738.6,3738.5,1e-08]
[1753390249461,6.39383302,3738.6,3738.5,1e-08]
[1753390249662,6.36039805,3738.6,3738.5,1e-08]
[1753390253871,6.36039805,3738.6,3738.5,0.46380001]
[1753390254170,6.36039805,3738.6,3738.5,1e-08]
[1753390254946,6.36039805,3738.6,3738.5,0.46380001]
[1753390255264,6.36039805,3738.6,3738.5,1e-08]
[1753390259378,6.36039805,3738.6,3738.5,0.46380001]
[1753390260374,6.36039805,3738.6,3738.5,1e-08]
[1753390267356,0.6856,3738.6,3738.5,1e-08]